fUST/lending_fUST_20260608
["ID","MTS","AMOUNT","RATE_DAILY","PERIOD"]
[424437282,1780893272000,1000.0,0.00023287,120]
[424437283,1780893283000,500.0,0.00023287,120]
[424437284,1780893296000,500.0,0.00023287,120]
[424437286,1780893405000,300.0,0.00023287,120]
[424437288,1780893416000,300.0,0.00023287,120]
[424437298,1780893431000,300.0,0.00023287,120]
[424437300,1780893485000,500.0,0.00023287,120]
[424437301,1780893495000,500.0,0.00023287,120]
[424437302,1780893504000,500.0,0.00023287,120]
[424437303,1780893526000,500.0,0.00023287,120]
[424437306,1780893581000,890.173,0.00023287,120]
[424437307,1780893608000,565.8485215,0.00023287,120]
[424437309,1780893931000,-521.30333699,0.00012329,2]
[424437314,1780894030000,-84.43496083,0.00012329,2]
[424437311,1780894030000,-7.42666301,0.00012329,2]
[424437313,1780894030000,-367.18,0.00012329,2]
[424437312,1780894030000,-440.61,0.00012329,2]
[424437315,1780894033000,-221.54503917,0.00012329,2]
[424437317,1780894033000,-212.49,0.00012329,2]
[424437316,1780894033000,-254.98,0.00012329,2]
[424437321,1780894033000,-657.65816663,0.00013802,2]
[424437320,1780894033000,-165.11594749,0.00012639,2]
[424437319,1780894033000,-885.38,0.00012329,2]
[424437318,1780894033000,-177.07,0.00012329,2]
[424439419,1780895243000,-991.75856156,0.00011472,2]
[424439420,1780895244000,-573.72828739,0.00011472,2]
[424439421,1780895244000,-175.83117686,0.00011588,2]
[424439422,1780895345000,-149.03328001,0.00011588,2]
[424439423,1780895345000,-217.36795389,0.00011588,2]
[424439424,1780895371000,-580.11510156,0.00011009,2]
[424439425,1780895371000,-684.37062148,0.00011009,2]
[424439471,1780895431000,-212.77853635,0.00013414,2]
[424439468,1780895431000,-150.15975902,0.00011009,2]
[424439470,1780895431000,-327.6247411,0.00013271,2]
[424439469,1780895431000,-159.82458408,0.00012198,2]
[424439860,1780895440000,-500.0,0.00013414,2]
[424439857,1780895440000,-287.22146365,0.00013414,2]
[424439866,1780895440000,-500.0,0.00013414,2]
[424439862,1780895440000,-512.7079649,0.00013414,2]
[424439864,1780895440000,-9.4001795,0.00013414,2]
[424439868,1780895441000,-21.1929745,0.00013414,2]
[424440182,1780895443000,-289.21213238,0.00013414,2]
[424440622,1780895446000,-283.009,0.000138,2]
[424440630,1780895446000,-170.995405,0.00013802,2]
[424440632,1780895446000,-170.995405,0.00013802,2]
[424440624,1780895446000,-500.0,0.00013801,2]
[424440628,1780895446000,-170.995405,0.00013802,2]
[424440626,1780895446000,-170.995405,0.00013802,2]
[424440644,1780895446000,-170.995405,0.00013802,2]
[424440636,1780895446000,-170.995405,0.00013802,2]
[424440642,1780895446000,-170.995405,0.00013802,2]
[424440640,1780895446000,-170.995405,0.00013802,2]
[424440646,1780895446000,-170.995405,0.00013802,2]
[424440657,1780895446000,-652.0,0.00013802,2]
[424440618,1780895446000,-170.995405,0.00013799,2]
[424440634,1780895446000,-170.995405,0.00013802,2]
[424440620,1780895446000,-170.995405,0.00013799,2]
[424440602,1780895446000,-181.09600683,0.00013416,7]
[424440612,1780895446000,-151.0,0.00013798,2]
[424440586,1780895446000,-189.59489312,0.00013414,2]
[424440588,1780895446000,-416.45353791,0.00013414,2]
[424440590,1780895446000,-500.0,0.00013414,2]
[424440592,1780895446000,-500.0,0.00013414,2]
[424440606,1780895446000,-181.09600683,0.00013684,7]
[424440659,1780895446000,-652.0,0.00013802,2]
[424440616,1780895446000,-170.995405,0.00013799,2]
[424440604,1780895446000,-377.72266141,0.00013684,7]
[424440596,1780895446000,-500.0,0.00013414,2]
[424440598,1780895446000,-156.0,0.00013416,2]
[424440608,1780895446000,-342.3418333,0.00013699,2]
[424440600,1780895446000,-377.72266141,0.00013416,7]
[424440610,1780895446000,-234.5478814,0.00013699,2]
[424440614,1780895446000,-170.995405,0.00013799,2]
[424440594,1780895446000,-500.0,0.00013414,2]
[424440648,1780895446000,-170.995405,0.00013802,2]
[424440638,1780895446000,-170.995405,0.00013802,2]
[424440665,1780895446000,-652.0,0.00013802,2]
[424440687,1780895446000,-652.0,0.00013802,2]
[424440691,1780895446000,-652.0,0.00013802,2]
[424440693,1780895446000,-652.0,0.00013802,2]
[424440698,1780895446000,-599.77686693,0.00013802,2]
[424440701,1780895446000,-166.38619636,0.00013802,2]
[424440703,1780895446000,-377.72266141,0.00014086,7]
[424440695,1780895446000,-652.0,0.00013802,2]
[424440705,1780895446000,-181.09600683,0.00014086,7]
[424440710,1780895446000,-415.19009179,0.00014474,2]
[424440708,1780895446000,-171.94143477,0.00014314,2]
[424440714,1780895446000,-181.09600683,0.00014489,7]
[424440716,1780895446000,-170.995405,0.00014489,2]
[424440718,1780895446000,-170.995405,0.00014489,2]
[424440712,1780895446000,-377.72266141,0.00014489,7]
[424440700,1780895446000,-165.0,0.00013802,2]
[424440689,1780895446000,-652.0,0.00013802,2]
[424440685,1780895446000,-652.0,0.00013802,2]
[424440674,1780895446000,-652.0,0.00013802,2]
[424440653,1780895446000,-151.0,0.00013802,2]
[424440663,1780895446000,-652.0,0.00013802,2]
[424440650,1780895446000,-151.0,0.00013802,2]
[424440655,1780895446000,-652.0,0.00013802,2]
[424440652,1780895446000,-151.0,0.00013802,2]
[424440667,1780895446000,-652.0,0.00013802,2]
[424440669,1780895446000,-652.0,0.00013802,2]
[424440671,1780895446000,-652.0,0.00013802,2]
[424440720,1780895446000,-125.08927661,0.00014489,2]
[424440673,1780895446000,-652.0,0.00013802,2]
[424440676,1780895446000,-652.0,0.00013802,2]
[424440678,1780895446000,-652.0,0.00013802,2]
[424440680,1780895446000,-652.0,0.00013802,2]
[424440681,1780895446000,-652.0,0.00013802,2]
[424440683,1780895446000,-652.0,0.00013802,2]
[424440661,1780895446000,-652.0,0.00013802,2]
[424440968,1780896334000,-154.52963204,0.00011588,7]
[424440969,1780896334000,-500.0,0.00012691,2]
[424440971,1780896334000,-278.66153494,0.00012691,2]
[424440970,1780896334000,-500.0,0.00012691,2]
[424440972,1780896425000,-300.42099949,0.00012564,2]
[424441005,1780896632000,-1919.47359956,0.00012286,2]
[424441003,1780896632000,-2780.10540095,0.00012286,2]
[424441018,1780896632000,-534.02916589,0.00013063,2]
[424441021,1780896632000,-240.8389356,0.00013617,2]
[424441019,1780896632000,-1350.4745122,0.00013591,2]
[424441007,1780896632000,-326.57098386,0.0001241,2]
[424441025,1780896632000,-13.59111301,0.00013725,2]
[424441010,1780896632000,-330.71399301,0.00013039,2]
[424441008,1780896632000,-502.34707895,0.00012563,2]
[424441012,1780896632000,-207.88589485,0.00013063,2]
[424441014,1780896632000,-237.58387983,0.00013063,2]
[424441023,1780896632000,-207.418661,0.00013634,2]
[424441016,1780896632000,-371.22481224,0.00013063,2]
[424441208,1780896646000,-241.72649278,0.00014488,2]
[424441211,1780896646000,-500.0,0.00014488,2]
[424441210,1780896646000,-500.0,0.00014488,2]
[424441212,1780896646000,-500.0,0.00014488,2]
[424441209,1780896646000,-258.27350722,0.00014488,2]
[424441217,1780896646000,-152.0,0.00014489,7]
[424441220,1780896646000,-152.0,0.00014493,7]
[424441203,1780896646000,-647.70879033,0.00014448,2]
[424441219,1780896646000,-152.0,0.00014493,7]
[424441206,1780896646000,-500.0,0.00014488,2]
[424441205,1780896646000,-643.58279681,0.00014488,2]
[424441204,1780896646000,-500.0,0.00014488,2]
[424441199,1780896646000,-152.0,0.00014304,7]
[424441216,1780896646000,-152.0,0.00014489,7]
[424441200,1780896646000,-252.13889068,0.00014448,2]
[424441207,1780896646000,-500.0,0.00014488,2]
[424441196,1780896646000,-161.22836836,0.00013725,2]
[424441202,1780896646000,-450.24801908,0.00014448,2]
[424441197,1780896646000,-152.0,0.00014008,2]
[424441198,1780896646000,-152.0,0.000143,7]
[424441195,1780896646000,-359.20790975,0.00013588,2]
[424441201,1780896646000,-288.15873221,0.00014448,2]
[424441218,1780896646000,-200.0,0.00014489,2]
[424441234,1780896646000,-152.0,0.00014681,2]
[424441215,1780896646000,-500.0,0.00014488,2]
[424441214,1780896646000,-500.0,0.00014488,2]
[424441240,1780896646000,-171.94143478,0.00014895,2]
[424441239,1780896646000,-171.94143478,0.00014773,2]
[424441242,1780896646000,-171.94143478,0.00015016,2]
[424441237,1780896646000,-154.0699039,0.00014709,2]
[424441236,1780896646000,-242.0,0.000147,2]
[424441235,1780896646000,-2334.2183575,0.00014686,2]
[424441241,1780896646000,-603.93054502,0.000149,2]
[424441233,1780896646000,-152.0,0.00014681,2]
[424441225,1780896646000,-500.0,0.00014536,2]
[424441230,1780896646000,-500.0,0.00014537,2]
[424441238,1780896646000,-500.0,0.00014709,2]
[424441224,1780896646000,-184.74794,0.00014531,2]
[424441221,1780896646000,-152.0,0.00014498,7]
[424441231,1780896646000,-308.21945307,0.00014537,2]
[424441227,1780896646000,-500.0,0.00014537,2]
[424441232,1780896646000,-503.00471781,0.00014537,2]
[424441228,1780896646000,-500.0,0.00014537,2]
[424441223,1780896646000,-216.901537,0.0001453,2]
[424441229,1780896646000,-500.0,0.00014537,2]
[424441222,1780896646000,-215.281314,0.00014529,2]
[424441226,1780896646000,-500.0,0.00014536,2]
[424441213,1780896646000,-500.0,0.00014488,2]
[424441249,1780896647000,-825.57973743,0.00015208,2]
[424441247,1780896647000,-297.20870547,0.00015208,2]
[424441253,1780896647000,-313.940521,0.00015208,2]
[424441254,1780896647000,-500.0,0.00015256,2]
[424441255,1780896647000,-154.06990392,0.00015257,2]
[424441245,1780896647000,-183.624725,0.00015086,2]
[424441246,1780896647000,-163.80290662,0.000152,2]
[424441248,1780896647000,-528.37103195,0.00015208,2]
[424441257,1780896647000,-408.09531305,0.00015393,2]
[424441243,1780896647000,-377.72266142,0.00015026,7]
[424441252,1780896647000,-1187.64598708,0.00015208,2]
[424441256,1780896647000,-517.30098393,0.00015257,2]
[424441258,1780896647000,-500.0,0.0001568,2]
[424441244,1780896647000,-181.09600687,0.00015026,7]
[424441251,1780896647000,-261.18100036,0.00015208,2]
[424441270,1780896647000,-501.89165721,0.0001568,2]
[424441266,1780896647000,-500.0,0.0001568,2]
[424441269,1780896647000,-500.0,0.0001568,2]
[424441250,1780896647000,-228.53337531,0.00015208,2]
[424441268,1780896647000,-500.0,0.0001568,2]
[424441264,1780896647000,-500.0,0.0001568,2]
[424441265,1780896647000,-500.0,0.0001568,2]
[424441271,1780896647000,-5319.46390352,0.0001568,2]
[424441267,1780896647000,-500.0,0.0001568,2]
[424441261,1780896647000,-500.0,0.0001568,2]
[424441260,1780896647000,-500.0,0.0001568,2]
[424441259,1780896647000,-500.0,0.0001568,2]
[424441263,1780896647000,-500.0,0.0001568,2]
[424441262,1780896647000,-500.0,0.0001568,2]
[424441274,1780896684000,184.13764729,0.00024782,120]
[424441275,1780896730000,-297.63128248,0.00013724,2]
[424441276,1780896747000,-152.0,0.00014304,7]
[424441280,1780897217000,372.06,5e-05,2]
[424441284,1780897554000,-460.49211999,0.00014536,2]
[424441283,1780897554000,-152.0,0.00014303,7]
[424441286,1780897641000,-39.50788001,0.00014536,2]
[424441288,1780897641000,-360.14374383,0.00015048,2]
[424441287,1780897641000,-500.0,0.00014536,2]
[424441291,1780897654000,-952.42010392,0.00015048,2]
[424441293,1780897654000,-200.90883202,0.00015196,2]
[424441292,1780897654000,-500.0,0.00015196,2]
[424441289,1780897654000,-226.92584972,0.00015048,2]
[424441290,1780897654000,-535.73630846,0.00015048,2]
[424441311,1780897832000,-500.0,0.00015197,2]
[424441315,1780897832000,-500.0,0.00015197,2]
[424441310,1780897832000,-500.0,0.00015197,2]
[424441308,1780897832000,-500.0,0.00015197,2]
[424441307,1780897832000,-500.0,0.00015197,2]
[424441306,1780897832000,-500.0,0.00015197,2]
[424441305,1780897832000,-500.0,0.00015197,2]
[424441303,1780897832000,-258.125,0.00015197,2]
[424441313,1780897832000,-240.23530816,0.00015197,2]
[424441302,1780897832000,-154.06574592,0.00015048,2]
[424441301,1780897832000,-152.0,0.00014305,7]
[424441304,1780897832000,-591.50165237,0.00015197,2]
[424441328,1780897832000,-419.64868985,0.00015198,2]
[424441344,1780897832000,-2266.33519494,0.0001528,2]
[424441322,1780897832000,-500.0,0.00015197,2]
[424441338,1780897832000,-157.749588,0.00015269,2]
[424441340,1780897832000,-157.749588,0.00015269,2]
[424441342,1780897832000,-157.749588,0.00015269,2]
[424441324,1780897832000,-15865.07229355,0.00015198,2]
[424441336,1780897832000,-157.749588,0.00015269,2]
[424441347,1780897832000,-467.09929999,0.0001528,2]
[424441334,1780897832000,-500.0,0.00015256,2]
[424441330,1780897832000,-5328.18440436,0.00015198,2]
[424441319,1780897832000,-500.0,0.00015197,2]
[424441320,1780897832000,-550.0,0.00015197,2]
[424441326,1780897832000,-1899.87042264,0.00015198,2]
[424441317,1780897832000,-500.0,0.00015197,2]
[424441332,1780897832000,-500.0,0.00015256,2]
[424441422,1780897838000,-12109.70399529,0.0001528,2]
[424441419,1780897838000,-856.94411318,0.0001528,2]
[424442010,1780897843000,-5002.162073,0.0001528,2]
[424442008,1780897843000,-2765.68755009,0.0001528,2]
[424442087,1780897846000,-1974.63957015,0.0001528,2]
[424442092,1780897846000,-3969.92494692,0.0001528,2]
[424442093,1780897846000,-17463.78836526,0.0001528,2]
[424442094,1780897884000,518.12991668,0.00024781,120]
[424442096,1780897884000,518.12991668,0.00024781,120]
[424442095,1780897884000,518.12991668,0.00024781,120]
[424442097,1780897885000,518.12991668,0.00024781,120]
[424442099,1780897885000,518.12991668,0.00024781,120]
[424442098,1780897885000,518.12991668,0.00024781,120]
[424442100,1780897886000,518.12991668,0.00024781,120]
[424442102,1780897886000,518.12991668,0.00024781,120]
[424442101,1780897886000,518.12991668,0.00024781,120]
[424442105,1780897887000,518.12991668,0.00024781,120]
[424442104,1780897887000,518.12991668,0.00024781,120]
[424442103,1780897887000,518.12991668,0.00024781,120]
[424442107,1780897888000,518.12991668,0.00024781,120]
[424442106,1780897888000,518.12991668,0.00024781,120]
[424442118,1780898003000,172.70997222,0.00024781,120]
[424442119,1780898004000,172.70997222,0.00024781,120]
[424442120,1780898124000,172.70997221,0.00024781,120]
[424442123,1780898479000,21825.85,0.00024779,30]
[424442124,1780898530000,-447.16167463,0.00014126,2]
[424442130,1780898546000,-752.0688778,0.00014269,2]
[424442131,1780898563000,-657.6581667,0.00014269,2]
[424442132,1780898580000,-3415.7268635,0.00014823,2]
[424442133,1780898580000,-2856.0,0.00014823,2]
[424442135,1780898827000,-749.55946425,0.00014382,2]
[424442137,1780898831000,-22.35656466,0.00014527,2]
[424442136,1780898831000,-1111.82525015,0.00014382,2]
[424442162,1780899032000,-8731.38553277,0.0001508,2]
[424442163,1780899032000,-0.64821488,0.0001508,2]
[424442160,1780899032000,-206.5,0.00014877,2]
[424442161,1780899032000,-1301.85921291,0.0001508,2]
[424442158,1780899032000,-1543.13028429,0.00014382,2]
[424442159,1780899032000,-534.94217642,0.00014823,2]
[424442211,1780899038000,-811.51114452,0.0001508,2]
[424442203,1780899038000,-3168.86616958,0.0001508,2]
[424442456,1780899046000,-2079.69998992,0.0001508,2]
[424442455,1780899046000,-368.1946,0.0001508,2]
[424442457,1780899047000,-154177.10982314,0.0001508,2]
[424442458,1780899047000,-6460.87210653,0.0001508,2]
[424442460,1780899187000,1582.07560495,0.00024779,120]
[424442475,1780899942000,-300.42099949,0.00012083,2]
[424442477,1780899942000,-500.0,0.00012204,2]
[424442478,1780899942000,-380.4613733,0.00012204,2]
[424442476,1780899942000,-500.0,0.00012204,2]
[424442479,1780900046000,-1438.45815022,0.00012081,2]
[424442480,1780900121000,369.0,0.00024773,30]
[424442518,1780900231000,-877.13926924,0.00012081,2]
[424442519,1780900231000,-465.47474215,0.00012081,2]
[424442520,1780900231000,-697.03980434,0.00012081,2]
[424442522,1780900231000,-1088.42992398,0.00012081,2]
[424442521,1780900231000,-433.45811007,0.00012081,2]
[424442523,1780900231000,-300.0,0.00012201,2]
[424442525,1780900231000,-500.0,0.00012202,2]
[424442526,1780900231000,-500.0,0.00012202,2]
[424442527,1780900231000,-500.0,0.00012202,2]
[424442528,1780900231000,-144.76744294,0.00012202,2]
[424442524,1780900231000,-532.62133983,0.00012202,2]
[424442584,1780900238000,-500.0,0.00012201,2]
[424442593,1780900238000,-500.0,0.00012201,2]
[424442592,1780900238000,-500.0,0.00012201,2]
[424442600,1780900238000,-500.0,0.00012201,2]
[424442597,1780900238000,-500.0,0.00012201,2]
[424442599,1780900238000,-500.0,0.00012201,2]
[424442588,1780900238000,-500.0,0.00012201,2]
[424442573,1780900238000,-5000.0,0.0001208,2]
[424442590,1780900238000,-500.0,0.00012201,2]
[424442586,1780900238000,-435.93770017,0.00012201,2]
[424442604,1780900238000,-500.0,0.00012201,2]
[424442577,1780900238000,-500.0,0.00012201,2]
[424442575,1780900238000,-500.0,0.00012201,2]
[424442578,1780900238000,-256.39896222,0.00012201,2]
[424442595,1780900238000,-500.0,0.00012201,2]
[424442606,1780900238000,-500.0,0.00012201,2]
[424442629,1780900238000,-2913.8697817,0.0001379,2]
[424442608,1780900238000,-500.0,0.00012201,2]
[424442602,1780900238000,-488.3050398,0.00012201,2]
[424442637,1780900238000,-5026.58506175,0.0001478,2]
[424442635,1780900238000,-214.75,0.00014583,2]
[424442631,1780900238000,-439.84388533,0.0001379,2]
[424442628,1780900238000,-2142.94523383,0.0001379,2]
[424442624,1780900238000,-885.38,0.00012329,2]
[424442614,1780900238000,-367.18,0.00012329,2]
[424442633,1780900238000,-154.52963204,0.00013883,7]
[424442612,1780900238000,-440.61,0.00012329,2]
[424442616,1780900238000,-305.98,0.00012329,2]
[424442626,1780900238000,-1488.15641238,0.0001379,2]
[424442610,1780900238000,-528.73,0.00012329,2]
[424442620,1780900238000,-212.49,0.00012329,2]
[424442618,1780900238000,-254.98,0.00012329,2]
[424442622,1780900238000,-177.07,0.00012329,2]
[424442849,1780900242000,-500.0,0.00012201,2]
[424442847,1780900242000,-500.0,0.00012201,2]
[424442848,1780900242000,-298.55728381,0.00012201,2]
[424442850,1780900243000,-500.0,0.00012201,2]
[424442851,1780900243000,-500.0,0.00012201,2]
[424442853,1780900243000,-27286.25975468,0.0001478,2]
[424442854,1780900243000,-11254.0,0.0001478,2]
[424442852,1780900243000,-500.0,0.00012201,2]
[424442856,1780900243000,-3428.19821707,0.0001478,2]
[424442855,1780900243000,-13968.27331962,0.0001478,2]
[424442857,1780900243000,-1068.60977253,0.0001478,2]
[424442858,1780900243000,-1164.14458316,0.0001478,2]
[424442859,1780900243000,-3215.89712044,0.0001478,2]
[424442865,1780900246000,-30636.2481402,0.0001478,2]
[424442864,1780900246000,-10695.5512453,0.0001478,2]
[424442863,1780900246000,-18717.05941191,0.0001478,2]
[424442862,1780900246000,-5622.5,0.0001478,2]
[424442866,1780900329000,-272.20961305,0.00014632,2]
[424442867,1780900346000,-966.67723148,0.0001468,2]
[424442878,1780901133000,-219.33114527,0.00013698,2]
[424442877,1780901133000,-500.0,0.00013698,2]
[424442883,1780901235000,-171.8,0.00014289,2]
[424442880,1780901235000,-280.66885473,0.00013698,2]
[424442882,1780901235000,-167.86470132,0.00013715,2]
[424442881,1780901235000,-500.0,0.00013698,2]
[424442885,1780901235000,-152.0,0.00014303,7]
[424442887,1780901235000,-149.96,0.00014557,2]
[424442884,1780901235000,-152.0,0.00014303,7]
[424442889,1780901235000,-45.24762874,0.00014576,2]
[424442886,1780901235000,-368.2689814,0.00014413,2]
[424442888,1780901235000,-300.0,0.00014576,2]
[424442891,1780901248000,-500.0,0.00014576,2]
[424442892,1780901248000,-279.53202593,0.00014576,2]
[424442890,1780901248000,-120.11959791,0.00014576,2]
[424443186,1780901438000,-1602.00211669,0.00015278,2]
[424443135,1780901438000,-331.5134688,0.00015197,2]
[424443132,1780901438000,-433.4581101,0.00015084,2]
[424443130,1780901438000,-152.0,0.00015083,2]
[424443139,1780901438000,-1060.84310016,0.00015197,2]
[424443141,1780901438000,-278.024372,0.00015197,2]
[424443137,1780901438000,-596.72424384,0.00015197,2]
[424443143,1780901438000,-248.88387306,0.00015197,2]
[424443127,1780901438000,-184.033009,0.00014896,2]
[424443125,1780901438000,-150.03,0.00014841,2]
[424443121,1780901438000,-500.0,0.0001478,2]
[424443119,1780901438000,-500.0,0.0001478,2]
[424443114,1780901438000,-300.57937438,0.0001478,2]
[424443116,1780901438000,-229.6503463,0.0001478,2]
[424443118,1780901438000,-500.0,0.0001478,2]
[424443112,1780901438000,-47.68968162,0.00014095,7]
[424443107,1780901438000,-104.31031838,0.00014095,7]
[424443105,1780901438000,-167.86470132,0.0001303,2]
[424443123,1780901438000,-634.3748282,0.0001478,2]
[424443144,1780901438000,-317.74213942,0.00015197,2]
[424443134,1780901438000,-313.57,0.000151,2]
[424443167,1780901438000,-201.17383609,0.00015197,2]
[424443184,1780901438000,-46102.93625748,0.00015278,2]
[424443180,1780901438000,-62149.58732348,0.00015278,2]
[424443182,1780901438000,-2923.86707462,0.00015278,2]
[424443177,1780901438000,-12254.56810315,0.00015278,2]
[424443173,1780901438000,-714.20489389,0.00015197,2]
[424443171,1780901438000,-444.43548761,0.00015197,2]
[424443175,1780901438000,-639.34711506,0.00015197,2]
[424443148,1780901438000,-150.60615669,0.00015197,2]
[424443163,1780901438000,-408.68224714,0.00015197,2]
[424443128,1780901438000,-5041.2088588,0.00015067,2]
[424443165,1780901438000,-587.91393344,0.00015197,2]
[424443161,1780901438000,-261.55663817,0.00015197,2]
[424443158,1780901438000,-284.43871207,0.00015197,2]
[424443152,1780901438000,-268.93956552,0.00015197,2]
[424443159,1780901438000,-228.8620584,0.00015197,2]
[424443156,1780901438000,-496.47209285,0.00015197,2]
[424443154,1780901438000,-386.88570137,0.00015197,2]
[424443150,1780901438000,-172.12132193,0.00015197,2]
[424443146,1780901438000,-1657.56734399,0.00015197,2]
[424443169,1780901438000,-362.11290496,0.00015197,2]
[424443280,1780901441000,-4279.61192841,0.00015278,2]
[424443289,1780901443000,-246.77670356,0.00015278,2]
[424443288,1780901443000,-152.0,0.00013886,7]
[424443294,1780901446000,-833.42925743,0.00015125,2]
[424443295,1780901446000,-18176.72025134,0.00015278,2]
[424443297,1780901484000,478.6693569,0.00024766,120]
[424443299,1780901484000,478.6693569,0.00024766,120]
[424443298,1780901484000,478.6693569,0.00024766,120]
[424443301,1780901485000,478.6693569,0.00024766,120]
[424443300,1780901485000,478.6693569,0.00024766,120]
[424443305,1780901486000,478.6693569,0.00024766,120]
[424443304,1780901486000,478.6693569,0.00024766,120]
[424443303,1780901486000,478.6693569,0.00024766,120]
[424443302,1780901486000,478.6693569,0.00024766,120]
[424443306,1780901487000,478.6693569,0.00024766,120]
[424443307,1780901487000,478.6693569,0.00024766,120]
[424443308,1780901487000,478.6693569,0.00024766,120]
[424443311,1780901488000,478.6693569,0.00024766,120]
[424443310,1780901488000,478.6693569,0.00024766,120]
[424443309,1780901488000,478.6693569,0.00024766,120]
[424443313,1780902046000,-5000.0,0.00013095,2]
[424443314,1780902046000,-2855.44539093,0.00013227,2]
[424443316,1780902046000,-300.0,0.00013626,2]
[424443317,1780902046000,-500.0,0.00013626,2]
[424443318,1780902046000,-352.62403389,0.00013626,2]
[424443319,1780902046000,-365.02767668,0.00013626,2]
[424443315,1780902046000,-626.9028985,0.0001336,2]
[424443321,1780902049000,-500.0,0.00013626,2]
[424443320,1780902049000,-134.97232332,0.00013626,2]
[424443323,1780902049000,-500.0,0.00013626,2]
[424443324,1780902049000,-500.0,0.00013626,2]
[424443325,1780902049000,-500.0,0.00013627,2]
[424443322,1780902049000,-500.0,0.00013626,2]
[424443326,1780902049000,-500.0,0.00013627,2]
[424443327,1780902049000,-179.47927356,0.00013627,2]
[424443329,1780902049000,-500.0,0.00013627,2]
[424443330,1780902049000,-315.42903973,0.00013627,2]
[424443331,1780902049000,-500.0,0.00013627,2]
[424443332,1780902049000,-500.0,0.00013627,2]
[424443333,1780902049000,-199.1538987,0.00013766,2]
[424443334,1780902049000,-702.6679455,0.00013948,2]
[424443328,1780902049000,-500.0,0.00013627,2]
[424443336,1780902092000,-500.0,0.0001458,2]
[424443337,1780902108000,-195.952,0.00014973,2]
[424443338,1780902125000,-1806.27051222,0.00015178,2]
[424443339,1780902142000,-195.952,0.00015178,2]
[424443340,1780902159000,-1806.27051222,0.00015078,2]
[424443343,1780902303000,-500.0,0.00014977,2]
[424443341,1780902303000,-372.51378154,0.00014827,2]
[424443342,1780902303000,-4073.3850302,0.00014828,2]
[424443344,1780902303000,-320.80032781,0.00014977,2]
[424443346,1780902303000,-500.0,0.00014977,2]
[424443345,1780902303000,-500.0,0.00014977,2]
[424443348,1780902303000,-3233.30086045,0.00014978,2]
[424443347,1780902303000,-500.0,0.00014977,2]
[424443349,1780902305000,-10000.0,0.00014978,2]
[424443350,1780902306000,-10000.0,0.00014978,2]
[424443351,1780902315000,-9361.0,0.00014978,2]
[424443353,1780902446000,-152.0,0.00014054,7]
[424443354,1780902446000,-597.55946425,0.00014828,2]
[424443355,1780902448000,-1249.54464995,0.00014828,2]
[424443388,1780902632000,-467.68620834,0.00014978,2]
[424443383,1780902632000,-154.80275669,0.00013153,2]
[424443384,1780902632000,-358.19965397,0.00014978,2]
[424443389,1780902632000,-13524.74333983,0.00014978,2]
[424443387,1780902632000,-11571.06008662,0.00014978,2]
[424443385,1780902632000,-7680.0403535,0.00014978,2]
[424443386,1780902632000,-1905.92221814,0.00014978,2]
[424443414,1780902638000,-645.68277805,0.00014978,2]
[424443416,1780902638000,-2991.80289166,0.00014978,2]
[424443410,1780902638000,-661279.24752613,0.00014978,2]
[424443407,1780902638000,-44111.19341304,0.00014978,2]
[424443405,1780902638000,-19351.41192111,0.00014978,2]
[424443412,1780902638000,-459.493326,0.00014978,2]
[424443619,1780902646000,-46809.95323847,0.00014978,2]
[424443618,1780902646000,-360.69996,0.00014978,2]
[424443650,1780903543000,-1452.73875042,0.0001372,2]
[424443651,1780903543000,-131.98849962,0.00013859,2]
[424443652,1780903630000,-168.43249987,0.00013859,2]
[424443653,1780903630000,-1270.02565035,0.00014,2]